bitfinex/quotes_BTCUSD_20220120
["timestamp","ask_amount","ask_price","bid_price","bid_amount"]
[1642687509104,0.05,42463.0,42462.0,0.90736759]
[1642687509301,6.877e-05,42464.0,42462.0,0.90736759]
[1642687509504,0.00049885,42463.0,42462.0,0.90736759]
[1642687510105,0.00049885,42463.0,42459.0,0.025]
[1642687510305,0.00049885,42463.0,42459.0,0.02]
[1642687510508,6.877e-05,42464.0,42459.0,0.02]
[1642687510509,0.09433938,42464.0,42459.0,0.02]
[1642687510957,0.05006877,42464.0,42459.0,0.029]
[1642687511155,0.19874779,42460.0,42459.0,0.479]
[1642687511356,0.24874779,42460.0,42459.0,0.479]
[1642687512055,0.24874779,42460.0,42459.0,0.029]
[1642687512256,0.24874779,42460.0,42459.0,0.02]
[1642687512955,0.24874779,42460.0,42459.0,0.26]
[1642687512956,0.98299325,42460.0,42459.0,0.26]
[1642687513161,1.03029325,42460.0,42459.0,0.26]
[1642687513855,1.01950111,42460.0,42459.0,0.26]
[1642687515006,0.67664879,42460.0,42459.0,0.26]
[1642687515611,0.67664879,42460.0,42459.0,0.25931105]
[1642687516607,0.77664879,42460.0,42459.0,0.25931105]
[1642687516808,1.12549578,42460.0,42459.0,0.25931105]
[1642687517010,1.13713884,42459.0,42457.0,0.00120423]
[1642687517209,1.07764951,42458.0,42457.0,0.00120423]
[1642687517407,1.07764951,42458.0,42438.0,0.00126955]
[1642687517408,0.10155339,42456.0,42440.0,1.256]
[1642687517607,0.10155339,42456.0,42446.0,0.5987]
[1642687517608,0.15290981,42455.0,42446.0,0.5987]
[1642687517809,0.117844,42454.0,42450.0,0.00017189]
[1642687518011,0.24923296,42453.0,42450.0,0.00017189]
[1642687518315,0.00128022,42451.0,42450.0,0.00017189]
[1642687518572,0.04858022,42451.0,42450.0,0.00017189]
[1642687519073,0.09858022,42451.0,42446.0,0.00024066]
[1642687519270,0.15750122,42451.0,42446.0,0.00024066]
[1642687519672,0.156221,42451.0,42446.0,0.00024066]
[1642687520576,0.156221,42451.0,42449.0,0.18341324]
[1642687520976,0.05,42455.0,42449.0,0.18341324]
[1642687521377,0.058914,42456.0,42449.0,0.18465862]
[1642687521575,0.00050643,42461.0,42450.0,0.74738926]
[1642687521773,0.00050643,42461.0,42450.0,0.36678826]
[1642687521972,0.00050643,42461.0,42451.0,1.6367557]
[1642687522215,0.00050643,42461.0,42457.0,0.18218053]
[1642687522415,0.05897377,42464.0,42457.0,0.18218053]
[1642687522614,0.00050655,42461.0,42457.0,0.18218053]
[1642687523013,0.00050655,42461.0,42457.0,0.18918053]
[1642687523215,0.00050655,42461.0,42457.0,0.007]
[1642687523415,0.058907,42460.0,42457.0,0.007]
[1642687524215,0.058907,42460.0,42455.0,0.00120428]
[1642687524616,0.058907,42460.0,42456.0,6.875e-05]
[1642687524820,0.053907,42460.0,42456.0,6.875e-05]
[1642687525218,0.103907,42460.0,42455.0,0.00720426]
[1642687525418,0.103907,42460.0,42456.0,6.875e-05]
[1642687525720,0.05,42460.0,42457.0,0.11994]
[1642687525959,0.108903,42463.0,42459.0,0.31097089]
[1642687526165,0.00050659,42461.0,42457.0,0.46975152]
[1642687526360,0.00050659,42461.0,42460.0,1.39002023]
[1642687526560,0.00050659,42461.0,42460.0,1.58419423]
[1642687526962,0.00050659,42461.0,42460.0,1.79600564]
[1642687527161,6.877e-05,42464.0,42460.0,1.80435593]
[1642687527361,0.00050663,42463.0,42461.0,0.380574]
[1642687528375,6.877e-05,42464.0,42461.0,0.380574]
[1642687528666,0.00057541,42464.0,42461.0,0.380574]
[1642687529061,0.00057541,42464.0,42461.0,0.387574]
[1642687529262,0.00057541,42464.0,42461.0,0.73020188]
[1642687529706,0.00057541,42464.0,42462.0,0.3411399]
[1642687529707,6.877e-05,42464.0,42462.0,0.3411399]
[1642687529906,6.877e-05,42464.0,42463.0,1.144157]
[1642687530106,6.877e-05,42464.0,42463.0,0.194157]
[1642687530311,0.05897077,42464.0,42460.0,0.54718193]
[1642687530508,0.05897077,42464.0,42461.0,0.34414561]
[1642687530707,6.877e-05,42464.0,42460.0,0.54718193]
[1642687531108,6.877e-05,42464.0,42461.0,0.022]
[1642687531109,0.00057541,42464.0,42461.0,0.022]
[1642687531508,0.00057541,42464.0,42461.0,0.36206511]
[1642687531708,0.00057541,42464.0,42461.0,0.36197013]
[1642687531909,6.877e-05,42464.0,42462.0,0.380601]
[1642687532110,6.877e-05,42464.0,42463.0,1.3]
[1642687532310,6.877e-05,42464.0,42463.0,1.494121]
[1642687533111,6.877e-05,42464.0,42463.0,1.502121]
[1642687533311,6.877e-05,42464.0,42463.0,1.742121]
[1642687533572,6.877e-05,42464.0,42463.0,1.824591]
[1642687534372,6.877e-05,42464.0,42463.0,1.816591]
[1642687534971,0.00050665,42466.0,42464.0,1.3]
[1642687535171,0.00050665,42466.0,42465.0,1.86437304]
[1642687535573,0.002,42468.0,42465.0,1.86437304]
[1642687535770,0.00250667,42468.0,42465.0,1.86437304]
[1642687536173,0.00250667,42468.0,42467.0,1.13677131]
[1642687536373,0.00250667,42468.0,42467.0,0.1941]
[1642687536577,0.00257543,42468.0,42463.0,0.255]
[1642687536771,0.00206876,42468.0,42464.0,0.380601]
[1642687537206,0.00206876,42468.0,42464.0,0.72323778]
[1642687537403,0.00206876,42468.0,42465.0,0.24603982]
[1642687537604,0.00206876,42468.0,42466.0,0.194084]
[1642687537810,0.00206876,42468.0,42467.0,0.95]
[1642687538005,0.00206876,42468.0,42467.0,1.330573]
[1642687538204,0.00206876,42468.0,42467.0,1.67052241]
[1642687538809,0.00206876,42468.0,42467.0,1.680573]
[1642687539006,0.00206876,42468.0,42467.0,1.744873]
[1642687539407,0.00206876,42468.0,42467.0,3.000873]
[1642687540106,0.42,42473.0,42467.0,3.000873]
[1642687540107,0.26603928,42483.0,42468.0,1.494073]
[1642687540507,6.876e-05,42472.0,42468.0,1.494073]
[1642687540959,6.876e-05,42472.0,42469.0,0.37596285]
[1642687541163,6.876e-05,42472.0,42470.0,0.380545]
[1642687542560,6.876e-05,42472.0,42471.0,1.67792826]
[1642687542761,6.876e-05,42472.0,42471.0,1.50704948]
[1642687542762,4.33e-06,42472.0,42471.0,1.50704948]
[1642687543161,4.33e-06,42472.0,42471.0,1.52104948]
[1642687544365,4.33e-06,42472.0,42471.0,1.50704948]
[1642687545007,4.33e-06,42472.0,42471.0,1.52504948]
[1642687546411,4.33e-06,42472.0,42471.0,1.50704948]
[1642687547015,4.33e-06,42472.0,42471.0,2.78904948]
[1642687547814,4.33e-06,42472.0,42471.0,1.53304948]
[1642687548312,4.33e-06,42472.0,42471.0,1.50704948]
[1642687549159,4.33e-06,42472.0,42471.0,0.028]
[1642687549360,0.04730433,42472.0,42471.0,0.028]
[1642687550957,0.04730433,42472.0,42466.0,0.28532147]
[1642687551161,0.04730433,42472.0,42466.0,0.78532147]
[1642687551358,0.04730433,42472.0,42471.0,0.00125969]
[1642687552608,0.04730433,42472.0,42467.0,8.162e-05]
[1642687553007,0.04730433,42472.0,42467.0,0.01308162]
[1642687553209,0.05430433,42472.0,42467.0,0.01308162]
[1642687553411,0.05430433,42472.0,42468.0,6.443e-05]
[1642687553811,0.05486392,42472.0,42468.0,6.443e-05]
[1642687554411,0.04786392,42472.0,42468.0,6.443e-05]
[1642687554816,0.04730433,42472.0,42467.0,8.162e-05]
[1642687555011,0.04786393,42472.0,42467.0,8.162e-05]
[1642687555209,0.06686393,42472.0,42468.0,0.01]
[1642687555812,0.09239678,42471.0,42468.0,0.01]
[1642687556056,0.0473,42470.0,42468.0,0.01]
[1642687556459,0.09239678,42469.0,42467.0,8.162e-05]
[1642687556658,0.0473,42468.0,42467.0,8.162e-05]
[1642687556857,0.0473,42468.0,42466.0,9.881e-05]
[1642687558158,0.0473,42468.0,42464.0,0.00013319]
[1642687559157,0.0563,42468.0,42464.0,0.00313319]
[1642687559557,0.0563,42468.0,42465.0,0.000116]
[1642687560313,0.45014016,42467.0,42465.0,0.000116]
[1642687560507,0.40601578,42466.0,42465.0,0.000116]
[1642687560709,0.50601578,42466.0,42465.0,0.000116]
[1642687561108,0.51901578,42466.0,42465.0,0.000116]
[1642687561507,0.51901578,42466.0,42464.0,0.00013319]
[1642687561709,0.34017301,42465.0,42464.0,0.00013319]
[1642687561910,0.38747301,42465.0,42464.0,0.00013319]
[1642687562709,0.0473,42465.0,42464.0,0.00013319]
[1642687562909,0.0473,42465.0,42463.0,0.23013319]
[1642687563114,0.013,42465.0,42463.0,0.23013319]
[1642687563754,0.013,42465.0,42463.0,0.28013319]
[1642687564355,0.59802194,42470.0,42463.0,0.23013319]
[1642687564755,0.0929836,42469.0,42463.0,0.23013319]
[1642687565158,6.876e-05,42468.0,42463.0,0.23013319]
[1642687565755,6.876e-05,42468.0,42463.0,0.28013319]
[1642687565956,0.058908,42466.0,42463.0,0.28013319]
[1642687566154,0.3571253,42465.0,42463.0,0.28013319]
[1642687566355,0.45002295,42465.0,42463.0,0.28013319]
[1642687566557,0.34620443,42464.0,42463.0,0.28013319]
[1642687566957,6.876e-05,42468.0,42463.0,0.28013319]
[1642687567210,0.049,42464.0,42463.0,0.28013319]
[1642687568712,0.049,42464.0,42463.0,0.23013319]
[1642687568911,0.049,42464.0,42463.0,0.28013319]
[1642687569112,0.098,42464.0,42463.0,0.28013319]
[1642687569315,0.45148704,42464.0,42463.0,0.28013319]
[1642687569512,0.35348704,42464.0,42463.0,0.28013319]
[1642687569916,0.35348704,42464.0,42463.0,0.23013319]
[1642687570517,1.28408804,42464.0,42463.0,0.23013319]
[1642687570718,1.61485226,42464.0,42463.0,0.23013319]
[1642687571154,1.17985226,42464.0,42463.0,0.23013319]
[1642687571960,0.99228406,42464.0,42463.0,0.18881872]
[1642687572159,0.59149702,42464.0,42463.0,0.18881872]
[1642687572357,0.380601,42464.0,42463.0,0.18881872]
[1642687572557,0.09996876,42468.0,42463.0,0.18881872]
[1642687572759,0.380546,42467.0,42463.0,0.18881872]
[1642687572964,0.47824142,42467.0,42463.0,0.18881872]
[1642687573158,0.09769542,42466.0,42463.0,0.48434303]
[1642687573361,0.02306876,42468.0,42463.0,0.48434303]
[1642687573758,0.09592466,42467.0,42463.0,0.48434303]
[1642687574358,0.09592466,42467.0,42463.0,0.48034303]
[1642687574804,0.09599342,42468.0,42463.0,0.43034303]
[1642687575005,6.876e-05,42468.0,42463.0,0.43034303]
[1642687575205,0.021,42467.0,42463.0,0.43434303]
[1642687575406,0.11693193,42467.0,42463.0,0.19281872]
[1642687575612,0.021,42467.0,42463.0,0.19281872]
[1642687575807,0.439455,42466.0,42463.0,0.24281872]
[1642687576005,0.53538693,42466.0,42463.0,0.24281872]
[1642687576407,0.09593193,42465.0,42463.0,0.23881872]
[1642687577212,0.13693193,42465.0,42463.0,0.23981872]
[1642687577411,0.041,42465.0,42463.0,0.23981872]
[1642687577811,0.036,42465.0,42463.0,0.23981872]
[1642687578455,6.876e-05,42468.0,42463.0,0.23881872]
[1642687578861,6.876e-05,42468.0,42463.0,0.28881872]
[1642687579256,0.02306876,42468.0,42463.0,0.29281872]
[1642687579655,0.0975345,42467.0,42463.0,0.29281872]
[1642687580459,0.0975345,42467.0,42463.0,0.28881872]
[1642687580860,6.876e-05,42468.0,42463.0,0.28881872]
[1642687581159,0.0975345,42466.0,42463.0,0.29131872]
[1642687581356,0.018,42467.0,42463.0,0.29131872]
[1642687581557,0.018,42467.0,42463.0,0.19137285]
[1642687581757,0.09756476,42466.0,42463.0,0.24137285]
[1642687582516,0.09756476,42466.0,42463.0,0.23737285]
[1642687583117,6.876e-05,42468.0,42463.0,0.28737285]
[1642687583420,0.029,42466.0,42463.0,0.28937285]
[1642687583817,0.029,42466.0,42463.0,0.23937285]
[1642687583818,0.09768294,42465.0,42463.0,0.23937285]
[1642687584615,0.09768294,42465.0,42463.0,0.23737285]
[1642687584816,0.09768294,42465.0,42463.0,0.28737285]
[1642687585016,0.0977517,42468.0,42463.0,0.63737285]
[1642687585214,0.016,42465.0,42463.0,0.63937285]
[1642687585818,0.016,42465.0,42463.0,0.58937285]
[1642687586464,0.58261249,42466.0,42463.0,0.58737285]
[1642687586865,0.0976927,42465.0,42463.0,0.58737285]
[1642687587267,0.0976927,42465.0,42463.0,0.58937285]
[1642687588571,0.0976927,42465.0,42463.0,0.58737285]
[1642687589170,0.1146927,42465.0,42463.0,0.58737285]
[1642687589374,0.45046053,42465.0,42463.0,0.58737285]
[1642687589572,0.0976927,42464.0,42463.0,0.58737285]
[1642687591115,0.0976927,42466.0,42463.0,0.58737285]
[1642687591407,0.1466927,42464.0,42463.0,0.58737285]
[1642687591611,0.1466927,42464.0,42463.0,0.92193373]
[1642687591810,0.049,42464.0,42463.0,0.92193373]
[1642687592010,0.049,42464.0,42463.0,1.3036955]
[1642687592310,0.049,42464.0,42463.0,1.8298455]
[1642687592510,6.876e-05,42468.0,42464.0,0.117789]
[1642687592908,6.876e-05,42468.0,42464.0,0.167789]
[1642687593313,6.876e-05,42468.0,42464.0,0.176789]
[1642687593761,6.876e-05,42468.0,42465.0,0.2731247]
[1642687593960,6.876e-05,42468.0,42465.0,0.7731247]
[1642687594156,6.876e-05,42468.0,42465.0,0.8231247]
[1642687594760,6.876e-05,42468.0,42465.0,0.667795]
[1642687595358,6.876e-05,42468.0,42465.0,0.675795]
[1642687595359,0.09799695,42468.0,42465.0,0.675795]
[1642687595564,6.876e-05,42468.0,42465.0,0.675795]
[1642687595860,6.876e-05,42468.0,42467.0,1.13323492]
[1642687596060,6.876e-05,42468.0,42467.0,1.23323492]
[1642687596264,6.876e-05,42468.0,42467.0,0.85]
[1642687596461,6.876e-05,42468.0,42467.0,0.9]
[1642687597313,6.876e-05,42468.0,42467.0,1.51873701]
[1642687598314,6.876e-05,42468.0,42467.0,0.905]
[1642687598512,6.876e-05,42468.0,42467.0,0.9]
[1642687598713,0.79713607,42473.0,42467.0,0.85]
[1642687599114,6.876e-05,42472.0,42468.0,0.058897]
[1642687599313,6.876e-05,42472.0,42469.0,0.28754233]
[1642687599514,6.876e-05,42472.0,42469.0,0.33754233]
[1642687599713,6.876e-05,42472.0,42471.0,0.5]
[1642687600115,6.876e-05,42472.0,42471.0,0.55]
[1642687603066,6.876e-05,42472.0,42471.0,0.5]
[1642687603268,6.876e-05,42472.0,42463.0,0.90901947]
[1642687603470,6.876e-05,42472.0,42463.0,0.53737285]
[1642687603471,0.9,42464.0,42463.0,0.53737285]
[1642687603767,0.9,42464.0,42463.0,0.5374588]
[1642687603768,1.04900618,42464.0,42463.0,0.5374588]
[1642687603971,1.37987123,42464.0,42463.0,0.5374588]
[1642687604264,1.47977123,42464.0,42463.0,0.5374588]
[1642687604466,1.91258742,42464.0,42463.0,0.5374588]
[1642687604727,1.62055074,42464.0,42463.0,0.5374588]
[1642687605329,1.69347274,42464.0,42463.0,0.5374588]
[1642687605729,0.79347274,42464.0,42463.0,0.5374588]
[1642687605928,0.70482274,42464.0,42463.0,0.5374588]
[1642687606533,0.69082274,42464.0,42463.0,0.5374588]
[1642687607228,0.70054656,42464.0,42463.0,0.5374588]
[1642687607830,0.39975386,42464.0,42463.0,0.5374588]
[1642687608029,0.64975386,42464.0,42463.0,0.5374588]
[1642687608230,0.74975386,42464.0,42463.0,0.5374588]
[1642687608462,0.38875386,42464.0,42463.0,0.5374588]
[1642687608866,0.17707386,42464.0,42463.0,0.5374588]
[1642687609070,0.106222,42464.0,42463.0,0.5374588]
[1642687609266,0.29134714,42464.0,42463.0,0.5374588]
[1642687609967,0.65122256,42464.0,42463.0,0.5374588]
[1642687610165,1.17013605,42464.0,42463.0,0.5374588]
[1642687610365,0.77013605,42464.0,42463.0,0.5374588]
[1642687610563,1.23613935,42464.0,42463.0,0.5374588]
[1642687611364,1.24713935,42464.0,42463.0,0.48359251]
[1642687611765,1.30891935,42464.0,42463.0,0.48359251]
[1642687612609,1.29791935,42464.0,42463.0,0.48359251]
[1642687612805,1.24791935,42464.0,42463.0,0.48359251]
[1642687613006,1.23613935,42464.0,42463.0,0.48359251]
[1642687613408,1.25891935,42464.0,42463.0,0.48359251]
[1642687613908,1.24713935,42464.0,42463.0,0.48359251]
[1642687614212,0.86956603,42464.0,42463.0,0.48359251]
[1642687614406,0.86456603,42464.0,42463.0,0.48359251]
[1642687614608,0.85356603,42464.0,42463.0,0.48359251]
[1642687614807,0.75389314,42464.0,42463.0,0.48359251]
[1642687615007,0.76567314,42464.0,42463.0,0.48359251]
[1642687615207,0.65389314,42464.0,42463.0,0.48359251]
[1642687615506,0.66489314,42464.0,42463.0,0.48359251]
[1642687615987,0.67667314,42464.0,42463.0,0.48359251]
[1642687616590,0.76489314,42464.0,42463.0,0.48359251]
[1642687616793,1.26489314,42464.0,42463.0,0.48359251]
[1642687617190,1.35356603,42464.0,42463.0,0.48359251]
[1642687617388,1.36556603,42464.0,42463.0,0.48359251]
[1642687618589,1.35356603,42464.0,42463.0,0.48359251]
[1642687618790,1.21136603,42464.0,42463.0,0.48359251]
[1642687619190,1.26136603,42464.0,42463.0,0.48359251]
[1642687619397,0.77336603,42464.0,42463.0,0.38959537]
[1642687619809,0.62369314,42464.0,42463.0,0.38959537]
[1642687620009,1.42557126,42464.0,42463.0,0.38959537]
[1642687620211,0.63547314,42464.0,42463.0,0.38959537]
[1642687620609,0.62347314,42464.0,42463.0,0.38959537]
[1642687620809,0.61169314,42464.0,42463.0,0.38959537]
[1642687621014,0.65899314,42464.0,42463.0,0.38959537]
[1642687621209,0.67077314,42464.0,42463.0,0.38959537]
[1642687621414,0.68277314,42464.0,42463.0,0.38959537]
[1642687622710,0.67077314,42464.0,42463.0,0.38959537]
[1642687623114,0.62347314,42464.0,42463.0,0.38959537]
[1642687623311,0.62306572,42464.0,42463.0,0.38959537]
[1642687624167,1.42488965,42464.0,42463.0,0.38959537]
[1642687624672,1.51255781,42464.0,42463.0,0.38959537]
[1642687625067,0.71073861,42464.0,42463.0,0.38959537]
[1642687625267,0.72173861,42464.0,42463.0,0.38959537]
[1642687625466,0.62206572,42464.0,42463.0,0.38959537]
[1642687626266,0.50212572,42464.0,42463.0,0.38959537]
[1642687626668,0.49112572,42464.0,42463.0,0.38959537]
[1642687627315,0.56104772,42464.0,42463.0,0.2930134]
[1642687627515,0.57282772,42464.0,42463.0,0.2930134]
[1642687628614,1.01628728,42464.0,42463.0,0.2930134]
[1642687628818,1.01628728,42464.0,42461.0,0.00120415]
[1642687628819,0.976786,42463.0,42461.0,0.00120415]
[1642687629013,1.489626,42462.0,42461.0,0.00120415]
[1642687629213,1.489626,42462.0,42455.0,0.00017821]
[1642687629512,1.489626,42462.0,42450.0,0.103756]
[1642687629513,0.18409833,42453.0,42450.0,0.103756]
[1642687629920,0.0473,42454.0,42451.0,0.00020628]
[1642687630115,0.0473,42454.0,42451.0,0.00038449]
[1642687630314,0.0473,42454.0,42451.0,0.00012628]
[1642687630612,0.0473,42454.0,42451.0,0.00030449]
[1642687630613,0.058926,42453.0,42451.0,0.00030449]
[1642687630813,0.0473,42454.0,42451.0,0.00012628]
[1642687631067,0.0473,42454.0,42452.0,0.00010909]
[1642687631265,0.0563,42454.0,42451.0,0.00012628]
[1642687631472,0.009,42454.0,42452.0,0.31015169]
[1642687631865,0.009,42454.0,42453.0,1.15786666]
[1642687632370,0.009,42454.0,42453.0,0.20804487]
[1642687632570,0.0473,42459.0,42453.0,0.20804487]
[1642687632871,0.39557083,42470.0,42458.0,0.00129542]
[1642687632872,0.54830909,42464.0,42458.0,0.00129542]
[1642687633078,0.0999,42467.0,42463.0,0.00128697]
[1642687633374,0.00029979,42474.0,42472.0,0.10555947]
[1642687633571,0.00029979,42474.0,42473.0,1.52923736]
[1642687633769,0.00029979,42474.0,42473.0,2.01436884]
[1642687633969,0.2030974,42475.0,42474.0,0.04167654]
[1642687634167,0.0032974,42475.0,42474.0,1.680347]
[1642687634368,0.00123537,42484.0,42478.0,0.00126213]
[1642687634568,0.00123537,42484.0,42478.0,0.02729213]
[1642687634820,0.01006876,42479.0,42478.0,1.70783813]
[1642687635419,0.01806876,42479.0,42478.0,1.32729213]
[1642687635819,0.01541876,42479.0,42478.0,1.30126213]
[1642687636424,0.01541876,42479.0,42478.0,0.00126213]
[1642687637221,0.00741876,42479.0,42478.0,0.00126213]
[1642687637420,0.01541876,42479.0,42478.0,0.00126213]
[1642687638675,0.00741876,42479.0,42478.0,0.00126213]
[1642687639268,0.01341876,42479.0,42478.0,0.00126213]
[1642687641267,0.01741876,42479.0,42478.0,0.00126213]
[1642687642613,0.00741876,42479.0,42478.0,0.00126213]
[1642687643813,0.00741876,42479.0,42478.0,1.5886382]
[1642687644015,0.00741876,42479.0,42478.0,1.30126213]
[1642687644213,0.00741876,42479.0,42478.0,2.01957966]
[1642687644413,0.00741876,42479.0,42478.0,2.06957966]
[1642687645619,0.00741876,42479.0,42478.0,1.73180813]
[1642687646069,0.001334,42479.0,42478.0,1.75430813]
[1642687646274,0.001334,42479.0,42478.0,1.86174813]
[1642687646468,0.00049892,42481.0,42479.0,1.3]
[1642687646670,0.00049892,42481.0,42479.0,1.85056353]
[1642687646869,0.00049892,42481.0,42479.0,1.49547743]
[1642687647066,0.00049892,42481.0,42480.0,1.86285947]
[1642687647267,0.00123537,42484.0,42480.0,1.86285947]
[1642687647268,0.00123537,42484.0,42480.0,1.97172428]
[1642687647568,0.00049893,42482.0,42481.0,0.5]
[1642687647766,0.00049893,42482.0,42481.0,0.59385439]
[1642687647965,0.00049893,42482.0,42481.0,2.180517]
[1642687648171,0.00049893,42482.0,42481.0,2.27683537]
[1642687648367,6.876e-05,42483.0,42481.0,2.37683537]
[1642687648567,6.876e-05,42483.0,42482.0,1.544195]
[1642687648766,6.876e-05,42483.0,42482.0,1.594195]
[1642687649713,6.876e-05,42483.0,42482.0,1.544195]
[1642687649912,6.876e-05,42483.0,42482.0,1.594195]
[1642687650113,6.876e-05,42483.0,42482.0,1.544195]
[1642687650314,6.876e-05,42483.0,42482.0,1.594195]
[1642687651613,6.876e-05,42483.0,42482.0,1.544195]
[1642687653461,0.00106876,42483.0,42482.0,1.544195]
[1642687654662,6.876e-05,42483.0,42482.0,1.544195]
[1642687655267,6.876e-05,42483.0,42482.0,1.594195]
[1642687656066,6.876e-05,42483.0,42482.0,1.834195]
[1642687656265,6.876e-05,42483.0,42482.0,1.87670101]
[1642687657807,0.00780308,42489.0,42482.0,0.47670101]
[1642687658009,0.00780308,42489.0,42484.0,0.05887277]
[1642687658309,0.00049895,42485.0,42484.0,0.05887277]
[1642687658717,0.61321135,42485.0,42483.0,0.5]
[1642687658911,0.5642,42484.0,42482.0,0.24]
[1642687659209,0.6115,42483.0,42482.0,0.24]
[1642687659611,0.7115,42483.0,42482.0,0.24]
[1642687659810,0.6115,42483.0,42482.0,0.24]
[1642687660810,0.609,42483.0,42482.0,0.24]
[1642687661074,0.0473,42483.0,42482.0,0.24]
[1642687661572,0.0583,42483.0,42482.0,0.24]
[1642687663371,0.01,42483.0,42482.0,0.24]
[1642687664831,0.058887,42486.0,42482.0,0.29]
[1642687665133,0.00049572,42487.0,42485.0,0.27966847]
[1642687665330,8.595e-05,42488.0,42485.0,0.27966847]
[1642687665531,0.001,42486.0,42485.0,1.72101847]
[1642687666730,0.00049577,42488.0,42486.0,1.0]
[1642687666930,0.00049577,42488.0,42485.0,0.42101847]
[1642687667132,0.00049577,42488.0,42485.0,0.05]
[1642687667533,0.00249577,42488.0,42485.0,0.05]
[1642687667733,0.002,42488.0,42485.0,0.05]
[1642687668032,0.002,42488.0,42483.0,0.41399538]
[1642687668230,0.002,42488.0,42482.0,0.29]
[1642687668673,0.00829886,42489.0,42483.0,6.876e-05]
[1642687668867,0.06668008,42489.0,42483.0,6.876e-05]
[1642687669068,0.00049577,42487.0,42483.0,6.876e-05]
[1642687669968,0.18141264,42487.0,42483.0,6.876e-05]
[1642687670172,0.18190841,42487.0,42483.0,6.876e-05]
[1642687670370,0.56428883,42487.0,42483.0,6.876e-05]
[1642687670570,0.680546,42484.0,42483.0,6.876e-05]
[1642687670772,0.786736,42484.0,42483.0,6.876e-05]
[1642687671068,0.886736,42484.0,42483.0,6.876e-05]
[1642687671471,0.994636,42484.0,42483.0,6.876e-05]
[1642687673315,0.986636,42484.0,42483.0,6.876e-05]
[1642687673518,0.380546,42483.0,42482.0,0.21606189]
[1642687673717,0.63241569,42483.0,42482.0,0.21606189]
[1642687673925,0.73241569,42483.0,42482.0,0.21606189]
[1642687675118,1.65092529,42483.0,42482.0,0.21606189]
[1642687675519,0.95220915,42483.0,42482.0,0.21606189]
[1642687676768,0.93620915,42483.0,42482.0,0.21606189]
[1642687677376,0.77731515,42483.0,42482.0,0.21606189]
[1642687677567,0.78931515,42483.0,42482.0,0.21606189]
[1642687678567,0.88931515,42483.0,42482.0,0.21606189]
[1642687678766,0.87731515,42483.0,42482.0,0.21606189]
[1642687679368,0.89131515,42483.0,42482.0,0.21606189]
[1642687680013,1.00690825,42483.0,42482.0,0.21606189]
[1642687680616,0.90690825,42483.0,42482.0,0.21606189]
[1642687680914,0.77731515,42483.0,42482.0,0.21606189]
[1642687681514,0.79631515,42483.0,42482.0,0.21606189]
[1642687682716,0.77731515,42483.0,42482.0,0.21606189]
[1642687683570,0.79631515,42483.0,42482.0,0.21606189]
[1642687684769,0.77731515,42483.0,42482.0,0.21606189]
[1642687685670,0.79231515,42483.0,42482.0,0.21606189]
[1642687686671,0.77731515,42483.0,42482.0,0.21606189]
[1642687687520,0.74601515,42483.0,42482.0,0.21606189]
[1642687688822,0.34946915,42483.0,42482.0,0.21606189]
[1642687689027,0.08600846,42483.0,42482.0,0.26606189]
[1642687689225,0.08600846,42483.0,42482.0,0.9717171]
[1642687689529,0.08600846,42485.0,42484.0,0.005939]
[1642687689725,0.05937672,42487.0,42483.0,0.00740986]
[1642687689726,0.00049572,42487.0,42483.0,0.00740986]
[1642687689925,0.00049572,42487.0,42485.0,0.30520588]
[1642687690128,0.20103832,42497.0,42485.0,0.30520588]
[1642687690326,0.380546,42496.0,42487.0,0.058875]
[1642687690526,0.117752,42494.0,42487.0,0.058875]
[1642687691384,0.117752,42494.0,42493.0,0.33101295]
[1642687691586,0.126752,42494.0,42493.0,0.33101295]
[1642687691784,0.126752,42494.0,42491.0,0.058873]
[1642687691785,0.12733516,42494.0,42491.0,0.058873]
[1642687692089,8.595e-05,42493.0,42491.0,0.058873]
[1642687692485,6.876e-05,42492.0,42491.0,0.058873]
[1642687693586,0.01206876,42492.0,42491.0,0.058873]
[1642687694086,0.01206876,42492.0,42484.0,0.117751]
[1642687694286,0.058879,42490.0,42489.0,0.00120361]
[1642687694913,0.29205388,42490.0,42489.0,0.00120361]
[1642687695313,0.29205388,42490.0,42485.0,0.11773886]
[1642687695513,0.30705388,42490.0,42487.0,0.00120363]
[1642687696015,0.67735124,42490.0,42487.0,0.00120363]
[1642687696214,0.30705388,42490.0,42487.0,0.00120363]
[1642687696413,0.90144875,42489.0,42484.0,0.117751]
[1642687696614,0.30705388,42490.0,42486.0,0.00120365]
[1642687696816,0.29205388,42490.0,42486.0,0.00120365]
[1642687697217,1.19350263,42490.0,42486.0,0.00120365]
[1642687697414,0.90144875,42489.0,42486.0,0.00120365]
[1642687697714,0.90144875,42488.0,42484.0,0.117751]
[1642687697914,0.96032975,42489.0,42486.0,0.00120366]
[1642687698115,0.058881,42489.0,42486.0,0.00120366]
[1642687698568,0.058881,42489.0,42485.0,0.02952349]
[1642687698873,0.90144875,42488.0,42485.0,0.02952349]
[1642687699069,0.90144875,42488.0,42485.0,0.03072716]
[1642687699268,0.18599478,42489.0,42485.0,0.03072716]
[1642687699469,0.01,42488.0,42485.0,0.03072716]
[1642687700068,0.01,42488.0,42485.0,0.02952349]
[1642687700069,0.34224895,42488.0,42485.0,0.02952349]
[1642687700770,0.18618808,42489.0,42485.0,0.02952349]
[1642687701071,0.058881,42489.0,42486.0,0.0588775]
[1642687701570,0.007,42489.0,42487.0,0.058875]
[1642687702221,0.007,42489.0,42487.0,0.108875]
[1642687702427,0.007,42489.0,42486.0,0.05]
[1642687702621,0.007,42489.0,42485.0,0.05]
[1642687702826,0.12779471,42491.0,42485.0,0.05]
[1642687702827,0.8014163,42486.0,42485.0,0.05]
[1642687703021,0.8014163,42487.0,42485.0,0.05]
[1642687703221,0.8014163,42488.0,42486.0,0.00120572]
[1642687703423,0.8014163,42487.0,42486.0,0.00120572]
[1642687703620,0.01,42487.0,42486.0,0.00727539]
[1642687704022,0.01,42487.0,42486.0,0.00120572]
[1642687704222,0.8114163,42487.0,42486.0,0.00120572]
[1642687704822,0.91219334,42487.0,42486.0,0.00120572]
[1642687705028,0.91219334,42487.0,42486.0,0.00719995]
[1642687705227,0.11077704,42487.0,42486.0,0.00120572]
[1642687705625,0.004,42487.0,42486.0,0.00120572]
[1642687705824,0.0004876,42491.0,42487.0,0.058865]
[1642687706074,6.876e-05,42492.0,42487.0,0.4597316]
[1642687706271,0.0004876,42491.0,42487.0,0.11772823]
[1642687706472,0.0004876,42491.0,42487.0,0.27659223]
[1642687707170,6.876e-05,42492.0,42490.0,0.00125247]
[1642687707370,0.00048765,42491.0,42490.0,0.00125675]
[1642687707575,0.00048765,42491.0,42490.0,0.06012375]
[1642687707576,0.00548765,42491.0,42490.0,0.06012375]
[1642687708370,6.876e-05,42492.0,42490.0,0.00073991]